Cogmind - Beta 15 @@@ ROGUE MODE // 2025.07.10 @ 16:37:59 Player: SKIP Result: Destroyed by D-53 Grenadier with Mini Grenade Launcher Performance ------------- Evolutions (0) 0 Regions Visited (4) 800 Robots Destroyed (12) 60 Value Destroyed (368) 368 Prototype IDs (23) 460 Alien Tech Used (0) 0 Bonus (181) 181 TOTAL SCORE: 1869 Bonus ------- Follower Combat Kills 67 Aligned with FarCom 300 Friendly Fire -186 Cogmind --------- Core Integrity 0/250 Matter 290/300 Energy 160/160 System Corruption 0% Temperature Cool (0) Movement Walking (190) Ox1 Location -9/Mines Parts ------- > --- POWER (1) -------- Light Nuclear Core > --- PROPULSION (2) --- Aluminum Leg Flexi-carbon Leg > --- UTILITY (2) ------ Improved Heat Sink Medium Storage Unit > --- WEAPON (2) ------- Firepult > --- INVENTORY (10) --- Scrap Suit Small Storage Unit High-capacity Matter Pod (200) Signal Interpreter Light Assault Rifle Light Cannon Grenade Launcher Peak State ------------ > --- POWER ------------ Light Nuclear Core > --- PROPULSION ------- Aluminum Leg Flexi-carbon Leg > --- UTILITY ---------- Improved Heat Sink Medium Storage Unit > --- WEAPON ----------- Firepult > --- INVENTORY -------- Aluminum Leg Scrap Suit Small Storage Unit High-capacity Matter Pod Signal Interpreter Light Assault Rifle Light Cannon Grenade Launcher [Rating: 34] Favorites ----------- Power Ion Engine Engine Ion Engine Power Core Light Nuclear Core Propulsion Aluminum Leg Leg Aluminum Leg Wheel Wheel Utility Medium Storage Unit Device Heat Sink Storage Medium Storage Unit Weapon Assault Rifle Energy Cannon Firepult Ballistic Gun Assault Rifle Build | -11 -10 -10 -10 -9 ------- Run | Yrd Mat Min Exi Min Slots Evolved . | . . . . . Power . | . . . . . Propulsion . | . . . . . Utility . | . . . . . Weapon . | . . . . . Parts Attached 20 | 6 7 3 1 3 Power 6 | 1 2 2 . 1 Engine 3 | 1 1 1 . . Core 3 | . 1 1 . 1 Reactor . | . . . . . Propulsion 6 | 3 1 . . 2 Treads . | . . . . . Leg 4 | 1 1 . . 2 Wheel 2 | 2 . . . . Hover . | . . . . . Flight . | . . . . . Utility 5 | . 4 1 . . Device 3 | . 2 1 . . Storage 2 | . 2 . . . Processor . | . . . . . Hackware . | . . . . . Protection . | . . . . . Artifact . | . . . . . Weapon 3 | 2 . . 1 . Energy Gun . | . . . . . Energy Cannon 1 | . . . 1 . Ballistic Gun 2 | 2 . . . . Ballistic Cannon . | . . . . . Launcher . | . . . . . Special Weapon . | . . . . . Impact Weapon . | . . . . . Slashing Weapon . | . . . . . Piercing Weapon . | . . . . . Special Melee Weapon . | . . . . . Unidentified Prototypes . | . . . . . Parts Lost 4 | . 1 . . 3 Power 1 | . . . . 1 Propulsion 3 | . 1 . . 2 Utility . | . . . . . Weapon . | . . . . . Highest Loss Streak 3 | . 1 . . 3 To Critical Strikes . | . . . . . Average Backups 7 | 3 4 8 9 8 Power 1 | . 1 1 1 . Propulsion 1 | 3 1 1 1 1 Utility 2 | . . 2 4 4 Weapon 2 | . 1 3 3 3 Tool/Special . | . . . . . Unused Backups 10 | . 2 1 . 7 Power 1 | . 1 . . . Propulsion . | . . . . . Utility 4 | . . . . 4 Weapon 5 | . 1 1 . 3 Tool/Special . | . . . . . Average Slot Usage (%) 97 | . 97 100 96 82 Engine 7 | . 11 10 . . Core 6 | . 2 3 14 14 Leg 27 | . 24 28 28 25 Device 15 | . 21 14 14 14 Storage 11 | . 4 14 14 14 Energy Cannon 1 | . . . 3 14 Ballistic Gun 25 | . 28 28 20 . Peak Build Rating 34 | 5 11 12 30 34 Average Rating 11 | 2 8 8 16 31 On Entrance 10 | . 5 7 12 30 Naked Turns . | . . . . . Heaviest Build 38 | 7 20 20 38 38 Greatest Support 30 | 20 20 20 20 30 Greatest Overweight (x) 3 | 2 1 . 1 3 Average Overweight (x) . | . . . . 1 Largest Inventory Capacity 25 | 5 25 10 10 10 Average Capacity 8 | 5 6 10 10 10 Most Carried 10 | 5 7 10 10 10 Average Carried 8 | 4 4 9 10 9 Final Capacity 10 | 5 10 10 10 10 Final Carried 10 | 5 7 10 10 8 Class Distribution -------------------- 100% | Mutant Dominant Class ---------------- Mutant | -10/Materials Mutant | -10/Mines Mutant | -10/Exiles Mutant | -9/Mines Resources | -11 -10 -10 -10 -9 ----------- Run | Yrd Mat Min Exi Min Matter Collected 687 | 292 327 48 . 20 Remotely . | . . . . . Salvage Created 721 | 32 439 . . 250 Parts 28 | 3 24 . . 1 Haulers Intercepted 1 | . 1 . . . Recyclers Shooed 3 | . 3 . . . Parts Field Recycled . | . . . . . Retrieved Matter . | . . . . . Parts Self-Destructed . | . . . . . Prevented . | . . . . . Kills | -11 -10 -10 -10 -9 ------- Run | Yrd Mat Min Exi Min Combat Hostiles Destroyed 24 | 1 9 . . 14 Guns 10 | 1 9 . . . Cannons 3 | . . . . 3 AOE 11 | . . . . 11 Classes Destroyed 4 | 1 1 . . 2 Hauler 1 | . 1 . . . Grunt 10 | 1 9 . . . Assembled 14 | . . . . 14 Guerrilla 1 | . . . . 1 Best Kill Streak 14 | 1 4 . . 14 Combat Bots Only 14 | 1 4 . . 14 Max Kills in Single Turn 9 | 1 1 . . 9 Gunslinging . | . . . . . Exploded 6 | . . . . 6 Melee . | . . . . . Uniques/NPCs Destroyed . | . . . . . Combat | -11 -10 -10 -10 -9 -------- Run | Yrd Mat Min Exi Min Hostile Shots Fired 85 | 8 38 6 . 33 Missed 20 | 1 12 1 . 6 Hits 65 | 7 26 5 . 27 Melee 3 | . . . . 3 Projectile 62 | 7 26 5 . 24 AOE 9 | . . . . 9 Critical Strikes 2 | . 1 . . 1 Damage Taken 1187 | 78 319 54 . 736 Core 254 | . 102 . . 152 Absorbed by Shields . | . . . . . Core Remaining (%) 100 | 100 . . . . Volleys Fired 53 | 6 40 3 . 4 Largest 2 | 2 2 2 . 1 Hottest 250 | 40 40 40 . 250 Shots Fired 101 | 12 79 6 . 4 Gun 97 | 12 79 6 . . Cannon 4 | . . . . 4 Launcher . | . . . . . Special . | . . . . . Kinetic 97 | 12 79 6 . . Thermal 4 | . . . . 4 Explosive . | . . . . . Electromagnetic . | . . . . . Robot Hit Streak 12 | 6 11 12 . 1 Robot Miss Streak 7 | 1 3 2 . 7 Penetration Max . | . . . . . Secondary Targets 1 | . 1 . . . Max Gunslinging Chain 1 | . 1 . . . Shots Hit Robots 67 | 9 54 3 . 1 Core Hits 59 | 2 22 1 . 34 Critical Kills 1 | . 1 . . . Critical Parts Destroyed . | . . . . . Critical Strikes 1 | . 1 . . . Destroy 1 | . 1 . . . Melee Attacks . | . . . . . Impact . | . . . . . Slashing . | . . . . . Piercing . | . . . . . Sneak Attacks . | . . . . . Combat Hostiles . | . . . . . Follow-up Attacks . | . . . . . Damage Inflicted 1638 | 103 718 54 . 763 Guns 858 | 103 701 54 . . Cannons 135 | . . . . 135 Explosions 628 | . . . . 628 Melee . | . . . . . Ramming 17 | . 17 . . . Kinetic 858 | 103 701 54 . . Thermal 763 | . . . . 763 Explosive . | . . . . . Electromagnetic . | . . . . . Impact . | . . . . . Slashing . | . . . . . Piercing . | . . . . . Highest Corruption . | . . . . . Average Corruption . | . . . . . Corruption Purged . | . . . . . Corruption Blocked . | . . . . . Overload Shots . | . . . . . Overflow Damage . | . . . . . Projectiles . | . . . . . Explosions . | . . . . . Melee . | . . . . . Knockbacks . | . . . . . Impact . | . . . . . Kinetic . | . . . . . Secondary . | . . . . . Self-Inflicted Damage 36 | . . . . 36 Shots 4 | . . . . 4 Rammed . | . . . . . Targets Rammed 3 | . 3 . . . Kicked 3 | . 3 . . . Crushed . | . . . . . Highest Temperature 645 | . 10 . . 645 Average Temperature 248 | . 10 . . 254 Received Heat Transfer 261 | 42 195 24 . . Effects 7 | . . . . 7 Shutdowns 1 | . . . . 1 Energy Bleed 1 | . . . . 1 Interference 1 | . . . . 1 Short Circuit 1 | . . . . 1 Damage (minor) 2 | . . . . 2 Damage (major) 1 | . . . . 1 Siege Activations . | . . . . . Martial Activations . | . . . . . Shielding Activations . | . . . . . Robots Disrupted . | . . . . . Combat Hostiles . | . . . . . Robots Corrupted . | . . . . . Combat Hostiles . | . . . . . Parts Fried . | . . . . . Impact Corruptions . | . . . . . Robots Melted 1 | . . . . 1 Combat Hostiles . | . . . . . Parts Melted 2 | . . . . 2 Heat Transferred 4400 | . . . . 4400 Parts Sabotaged . | . . . . . Parts Stolen . | . . . . . Parts Stripped . | . . . . . Power Chain Reactions . | . . . . . Alert | -11 -10 -10 -10 -9 ------- Run | Yrd Mat Min Exi Min Maximum Alert Level . | . . . . . Low Security (%) 100 | 100 100 100 . 100 Level 1 . | . . . . . Level 2 . | . . . . . Level 3 . | . . . . . Level 4 . | . . . . . Level 5 . | . . . . . High Security . | . . . . . Max Security . | . . . . . Peak Influence 73 | 20 73 53 . 18 Initial 13 | . 13 9 . . Average 9 | 3 19 4 . 3 Influence Increases 342 | 20 227 75 . 20 Destroy 0b10 Robot/C 260 | 20 180 60 . . Destroy 0b10 Robot/NC 5 | . 5 . . . Destroy Leader 52 | . 42 10 . . Allied During Kill 5 | . . 5 . . Destroy Structure 20 | . . . . 20 Influence Decreases 342 | . 222 100 . 20 Entered New Map 23 | . 7 16 . . Time Decay 289 | . 205 84 . . Lost Part 30 | . 10 . . 20 Squads Dispatched 2 | . 2 . . . Investigation 1 | . 1 . . . Extermination . | . . . . . Reinforcement 1 | . 1 . . . Assault . | . . . . . Garrison . | . . . . . Intercept . | . . . . . Searches Triggered . | . . . . . Construction Impeded . | . . . . . Haulers Reinforced . | . . . . . Active Scanning Responses . | . . . . . Cargo Convoy Interrupts . | . . . . . Stealth | -11 -10 -10 -10 -9 --------- Run | Yrd Mat Min Exi Min Distress Signals 1 | . 1 . . . Communications Jammed . | . . . . . Distress Signals . | . . . . . Times Spotted 47 | 1 15 5 . 26 Peak Tracking Total 20 | 1 3 3 . 20 Tactical Retreats 1 | . . . . 1 Traps | -11 -10 -10 -10 -9 ------- Run | Yrd Mat Min Exi Min Traps Triggered 1 | . 1 . . . Indirectly . | . . . . . Trap Hack Attempts . | . . . . . Triggered . | . . . . . Disarmed . | . . . . . Reprogrammed . | . . . . . Reused . | . . . . . Traps Extracted . | . . . . . Installed . | . . . . . Triggered . | . . . . . Machines | -11 -10 -10 -10 -9 ---------- Run | Yrd Mat Min Exi Min Machines Disabled . | . . . . . Max in Single Turn . | . . . . . Machines Repaired . | . . . . . Machines Dismantled . | . . . . . Machines Sabotaged . | . . . . . Overloaded Fab Kills . | . . . . . Hacking | -11 -10 -10 -10 -9 --------- Run | Yrd Mat Min Exi Min Machines Accessed 5 | . . . 5 . Terminals . | . . . . . Fabricators . | . . . . . Repair Stations . | . . . . . Recycling Units . | . . . . . Scanalyzers . | . . . . . Garrison Access . | . . . . . Total Hacks 50 | . . . 50 . Successful 50 | . . . 50 . Failed . | . . . . . Catastrophic . | . . . . . Database Lockouts . | . . . . . Manual 1 | . . . 1 . Terminals . | . . . . . Fabricators . | . . . . . Repair Stations . | . . . . . Recycling Units . | . . . . . Scanalyzers . | . . . . . Garrison Access . | . . . . . Terminal Hacks 50 | . . . 50 . Record 49 | . . . 49 . Proto ID Catalog 1 | . . . 1 . Fabricator Hacks . | . . . . . Repair Station Hacks . | . . . . . Recycling Unit Hacks . | . . . . . Scanalyzer . | . . . . . Garrison Access Hacks . | . . . . . Unauthorized Hacks . | . . . . . Terminals . | . . . . . Fabricators . | . . . . . Repair Stations . | . . . . . Recycling Units . | . . . . . Scanalyzers . | . . . . . Garrison Access . | . . . . . Data Cores Recovered . | . . . . . Used . | . . . . . Hacking Detections . | . . . . . Full Trace Events . | . . . . . Feedback Events . | . . . . . Feedback Blocked . | . . . . . Robot Schematics Acquired . | . . . . . Robots Built . | . . . . . Authchips . | . . . . . Time . | . . . . . Total Robot Build Rating . | . . . . . Part Schematics Acquired . | . . . . . Parts Built . | . . . . . Authchips . | . . . . . Time . | . . . . . Total Part Build Rating . | . . . . . Parts Repaired . | . . . . . Time . | . . . . . Parts Recycled . | . . . . . Recycled Matter . | . . . . . Retrieved Matter . | . . . . . Retrieved Components . | . . . . . Parts Scanalyzed . | . . . . . Part Schematics Acquired . | . . . . . Parts Damaged . | . . . . . Bothacking | -11 -10 -10 -10 -9 ------------ Run | Yrd Mat Min Exi Min Used RIF Installer . | . . . . . Robots Hacked . | . . . . . Non-combat . | . . . . . Combat . | . . . . . Robot Hacks Applied . | . . . . . Relay Couplers Released . | . . . . . Fabnet Peak Effective % . | . . . . . Robots Rewired . | . . . . . Allies Hacked . | . . . . . Hacks Repelled . | . . . . . Allies | -11 -10 -10 -10 -9 -------- Run | Yrd Mat Min Exi Min Total Allies 2 | . . 2 . . Largest Group 2 | . . 2 1 . Highest-Rated Group 54 | . . 54 28 . Highest-Rated Ally 31 | . . 31 28 . Total Orders . | . . . . . Ally Attacks 13 | . . 13 . . Total Damage 180 | . . 180 . . Kills 3 | . . 3 . . Allies Corrupted . | . . . . . Allies Melted 1 | . . . . 1 Intel | -11 -10 -10 -10 -9 ------- Run | Yrd Mat Min Exi Min Active Infowar (turns) . | . . . . . Robot Analysis Total . | . . . . . Derelict Logs Recovered 2 | . . 2 . . Drone Launches . | . . . . . Drone Recoveries . | . . . . . Exploration | -11 -10 -10 -10 -9 ------------- Run | Yrd Mat Min Exi Min Turns Passed 2488 | 99 631 1001 713 44 Spaces Moved 1762 | 74 384 757 534 13 Core 70 | 70 . . . . Treads . | . . . . . Legs 1647 | . 343 757 534 13 Wheels 45 | 4 41 . . . Hover . | . . . . . Flight . | . . . . . Fastest Speed 50 | 50 80 120 120 190 Average Speed 122 | 90 115 120 133 200 Slowest Speed 330 | 150 120 120 190 330 Overloaded Moves . | . . . . . Propulsion Burnouts . | . . . . . Robots Hopped . | . . . . . Potential Cave-ins . | . . . . . Cave-ins Triggered . | . . . . . Exploration Rate (%) 53 | 8 63 93 92 9 Regions Visited 4 Branch Regions 3 Pre-discovered Areas 1 | . . . 1 . Known Exits Taken . | . . . . . Unknown Exits Taken 4 | 1 1 1 1 . Scrap Searched 1 | . . 1 . . Spaces Dug . | . . . . . Terrain Destroyed 27 | . . . . 27 Melee . | . . . . . Projectile 2 | . . . . 2 AOE 25 | . . . . 25 Terrain Rammed . | . . . . . Walls Destroyed . | . . . . . Machines Disabled . | . . . . . Actions | -11 -10 -10 -10 -9 --------- Run | Yrd Mat Min Exi Min Total 1991 | 92 493 844 536 26 Wait 122 | . 41 75 . 6 Move 1758 | 73 383 756 533 13 Hop . | . . . . . Pick Up 19 | 7 8 4 . . Fast Attach 9 | 3 4 . 1 1 Attach 7 | 2 3 . . 2 Detach . | . . . . . Swap 7 | 1 3 3 . . Drop 13 | . 8 3 2 . Fire 53 | 6 40 3 . 4 Melee . | . . . . . Ram . | . . . . . Kick 3 | . 3 . . . Crush . | . . . . . Escape Stasis . | . . . . . Rewire . | . . . . . Trap . | . . . . . Miscellaneous . | . . . . . Route ------- -11/Scrapyard -10/Materials (discovered 5 exits: [*Mat x2] / [*Min x2] / [*Sub]) -10/Mines (discovered 3 exits: [*Mat x2] / *Exi) -10/Exiles (discovered 2 exits: [*Min x2]) -9/Mines History --------- Turn | Location | Event 2 | -11/Scrapyard | Met Revision 17 60 | -11/Scrapyard | Discovered new exit (range 8) 100 | -11/Scrapyard | Entered Materials 148 | -10/Materials | Met 8R-AWN 194 | -10/Materials | Discovered new exit (range 16) 315 | -10/Materials | Build established: Mutant 389 | -10/Materials | Discovered new exit (range 15) 396 | -10/Materials | Discovered new exit (range 7) 495 | -10/Materials | Discovered new exit (range 6) 596 | -10/Materials | Discovered new exit (range 11) 700 | -10/Materials | Derelicts attacked the area 731 | -10/Materials | Entered Mines 732 | -10/Mines | Followed 8R-AWN into the Mines 782 | -10/Mines | Discovered new exit (range 10) 913 | -10/Mines | Discovered new exit (range 15) 964 | -10/Mines | Discovered new exit (range 5) 1026 | -10/Mines | Found a Scrap Suit stashed away for nefarious purposes 1028 | -10/Mines | Found Scrap Suit 1244 | -10/Mines | Learned Materials emergency access door positions 1401 | -10/Mines | Learned Materials emergency access door positions 1732 | -10/Mines | Entered Exiles 1732 | -10/Exiles | Accompanied by 1 ally 1754 | -10/Exiles | Discovered new exit (range 15) 1762 | -10/Exiles | Led the pair of lost Derelicts to a safe place 1790 | -10/Exiles | Welcomed by 8R-AWN 1810 | -10/Exiles | Met EX-HEX 1872 | -10/Exiles | Met EX-DEC 1898 | -10/Exiles | Visited The Gauntlet 2053 | -10/Exiles | Met EX-BIN 2094 | -10/Exiles | Learned location of Zion (-6) 2215 | -10/Exiles | Aligned with FarCom system 2216 | -10/Exiles | Given EX-Vault access code 2245 | -10/Exiles | Opened EX-Vault 2252 | -10/Exiles | Found Firepult 2293 | -10/Exiles | Warned to stay clear of 0b10 Research branches 2419 | -10/Exiles | Discovered new exit (range 14) 2445 | -10/Exiles | Left Exiles lab with Firepult 2445 | -10/Exiles | Entered Mines 2446 | -9/Mines | Assembled infested the area 2451 | -9/Mines | Assisted by a Guerilla fighting off Assembled 2459 | -9/Mines | Core integrity fell below 50% 2475 | -9/Mines | Core integrity fell below 20% 2479 | -9/Mines | Destroyed 14 combat bots 2489 | -9/Mines | Destroyed by D-53 Grenadier with Mini Grenade Launcher Last Messages --------------- 02461_ Overheating: Energy bleed (-3). 02461_ as-35512 heat damages Asb. Hover Unit. 02461_ Lgt. Nuclear Core destroyed. 02463_ Overheating: Imp. Heat Sink damaged (-1). 02464_ Acquired Flexi-carbon Leg. 02467_ Overheating: System interference. 02467_ Imp. Heat Sink temporarily disabled. 02470_ Firepult broken. 02470_ Overheating: Short circuit. 02473_ Acquired 5 matter. 02475_ C-30 ARC bursts open, deploying its payload. 02475_ D-53 Grenadier unfolds itself. 02477_ Acquired 15 matter. 02477_ as-78325 destroyed. 02480_ as-11519 destroyed. 02486_ as-31911 destroyed. 02486_ Aluminum Leg destroyed. 02488_ The unstable cave ceiling collapses. Map ----- +----------------------------------------------------+ | ??????????????????????????????? | | ??????????????????????????????? | | ??????????????????????????????? | | ??????????????????????????????? | | ??????????????????????????????? | | ??????????????????????????????? | | ??????????????????????????????? | | ??????????????????????????????? | | ??????????????????????????????? | | ??????????????????????????????? | | ?????" ???????????????????????? | | ????? ???????????????????????? | | ???? ???????????????????????? | | ????# t???????????????????????? | | ????# ???????????????????????? | | ????# ??????????#????????????? | | ????# ????????? ?????????????? | | ???## #????#?? ??????????????? | | ??## #??? ## ???????????????? | | ??# ##?? ????????????????? | | ?## #? $ ?????????????????? | | ?# < ## ??????????????????? | | ?# # ###?????????????????? | | ## % #?????????????????? | | # #?????????????????? | | ?# @ #### ##???????????? | | ?# a #???????????? | | ?# ## #??????????? | | ?# #????? #?????????? | | ?# ##????????????????? | | ?## #?????????????????? | | ?# ##?????????????????? | | ?## d #?????????????????? | | ??# d #?????????????????? | | ??## % ## #?????????????????? | | ???## #? #?????????????????? | | ????## ##? u"????????????????? | | ???## ##?#####???????????????? | | ???# #?????????????????????? | | ???# #????????????????????? | | ???# #???????????????????? | | ??? #???????????????????? | | ??# ##???????????????????? | | ??## ##????????????????????? | | ???######?????????????????????? | | ??????????????????????????????? | | ??????????????????????????????? | | | | | | | +----------------------------------------------------+ Best States ------------- Heat Dissipation 49 Energy Generation 14 Energy Capacity 250 Matter Stores 300 Matter Capacity 300 Sight Range 16 Terrain Scan Density 10 Evasion (%) 55 Item Schematics ----------------- None Robot Schematics ------------------ None Fabricated ------------ Nothing Repaired ---------- Nothing Alien Tech Used ----------------- None Achievements -------------- Hunted Challenges ------------ None Game ------ Seed StructuralCombatSuit Manual? 0 Play Time 00:27:16 Cumulative 61.6 hours Start 2025.07.10 @ 16:07:56 End 2025.07.10 @ 16:37:59 Sessions 3 Manual Loads 0 Difficulty Rogue Special Mode None Game No. 98 Rogue 98 Adventurer 0 Explorer 0 Win Type - Total 0 Types 0/0/0/0/0/0/0/0/0/0 Lore% 47 Gallery% 31 Achievement% 29 Wizard Run 0 Options --------- Layout 1 ASCII 0 Keyboard 0 Movement Mouse Keybinds 0 Fullscreen 2 Font 24/Terminus Map View 50x35 Zoom Use 0% Tactical HUD 1 Map Filters NONE Filters NONE Steam 1 RUN: b54149d1-96e7-4da4-954d-dfad17608527